Cogmind - Beta 13 @@@ ROGUE MODE // 2024.07.06 @ 21:05:28 Player: JackZewap Result: Destroyed by Lightning with EMDS Performance ------------- Evolutions (4) 2000 Regions Visited (10) 2000 Robots Destroyed (107) 535 Value Destroyed (3925) 3925 Prototype IDs (18) 360 Alien Tech Used (0) 0 Bonus (2447) 2447 TOTAL SCORE: 11267 Bonus ------- High Alert Combat Kills 140 Follower Combat Kills 1773 Network Hubs Disabled 400 Met Imprinter 300 Was Imprinted 300 Friendly Fire -466 Cogmind --------- Core Integrity 0/850 Matter 135/300 Energy 98/100 System Corruption 56% Temperature Cool (0) Movement Core (50) Location -6/Hub_04(d) Parts ------- > --- POWER (2) -------- (None) > --- PROPULSION (3) --- (None) > --- UTILITY (7) ------ Enhanced Optical Array > --- WEAPON (3) ------- (None) > --- INVENTORY (5) ---- Compact Matter Pod (150) Advanced Sensor Array Armor Integrity Analyzer Transmission Jammer Heavy Pick Peak State ------------ > --- POWER ------------ Fusion Compressor Neutrino Core > --- PROPULSION ------- Medium Treads Improved Medium Treads Improved Medium Treads > --- UTILITY ---------- Improved Cooling System Large Storage Unit Enhanced Optical Array Core Analyzer Zionite Weapon Casing Layered Medium Armor Plating Centrium Medium Armor Plating > --- WEAPON ----------- Wave Gun Zionite Phaser-S Advanced Variable Charge Gun > --- INVENTORY -------- Compact Wheel Coolant Injector High-capacity Battery Compact Matter Pod Advanced Sensor Array Armor Integrity Analyzer Improved Particle Charger Transmission Jammer Improved Light Armor Plating Centrium Medium Armor Plating Z-Drone Bay Wave Gun Mini Grenade Launcher Datajack Heavy Pick [Rating: 85] Favorites ----------- Power Improved Ion Engine Engine Improved Ion Engine Power Core Fusion Compressor Propulsion Light Treads Treads Light Treads Wheel Compact Wheel Utility Improved Heat Sink Device Improved Heat Sink Storage Large Storage Unit Processor Core Analyzer Protection Layered Medium Armor Plating Weapon Heavy Particle Gun Energy Gun Heavy Particle Gun Ballistic Gun Heavy Assault Rifle Launcher Rocket Array Piercing Weapon Heavy Pick Special Melee Weapon Datajack Build | -11 -10 -9 -9 -7 -6 -6 -6 -6 -6 -6 ------- Run | Yrd Mat Mat Min Zio Pro Fac Ext Cet Arc Hub Slots Evolved 8 | . . 2 . . . 6 . . . . Power 1 | . . . . . . 1 . . . . Propulsion 1 | . . . . . . 1 . . . . Utility 5 | . . 2 . . . 3 . . . . Weapon 1 | . . . . . . 1 . . . . Parts Attached 132 | 6 3 28 7 1 9 33 15 5 3 22 Power 15 | 1 . 3 2 . 1 3 1 . . 4 Engine 8 | 1 . 2 1 . 1 1 . . . 2 Core 7 | . . 1 1 . . 2 1 . . 2 Reactor . | . . . . . . . . . . . Propulsion 23 | 2 . 4 4 . 4 2 2 . 1 4 Treads 22 | 2 . 4 4 . 4 2 2 . 1 3 Leg . | . . . . . . . . . . . Wheel 1 | . . . . . . . . . . 1 Hover . | . . . . . . . . . . . Flight . | . . . . . . . . . . . Utility 52 | 1 2 8 . . 2 17 7 4 . 11 Device 23 | . . 3 . . 2 10 5 . . 3 Storage 4 | 1 1 1 . . . . . . . 1 Processor 6 | . . 2 . . . 2 1 . . 1 Hackware . | . . . . . . . . . . . Protection 19 | . 1 2 . . . 5 1 4 . 6 Artifact . | . . . . . . . . . . . Weapon 42 | 2 1 13 1 1 2 11 5 1 2 3 Energy Gun 28 | . . 6 1 1 1 10 4 1 2 2 Energy Cannon . | . . . . . . . . . . . Ballistic Gun 10 | 2 1 7 . . . . . . . . Ballistic Cannon . | . . . . . . . . . . . Launcher 1 | . . . . . . . . . . 1 Special Weapon . | . . . . . . . . . . . Impact Weapon . | . . . . . . . . . . . Slashing Weapon . | . . . . . . . . . . . Piercing Weapon 1 | . . . . . . 1 . . . . Special Melee Weapon 2 | . . . . . 1 . 1 . . . Unidentified Prototypes 7 | . . 2 . . . 1 . 2 . 2 Parts Lost 30 | . . 2 3 . 2 . 1 1 1 20 Power 8 | . . 1 2 . . . . . . 5 Propulsion 7 | . . . 1 . 1 . . . 1 4 Utility 9 | . . . . . 1 . . . . 8 Weapon 6 | . . 1 . . . . 1 1 . 3 Highest Loss Streak 13 | . . 1 2 . 1 . 1 1 1 13 To Critical Strikes 1 | . . . 1 . . . . . . . Average Slot Usage (%) 98 | . 97 99 99 100 99 100 100 99 100 89 Engine 6 | . 14 7 6 11 11 7 . . . 1 Core 4 | . . 3 4 . . 5 13 13 13 10 Treads 21 | . 28 22 21 22 21 20 20 20 20 15 Device 17 | . . 12 22 22 21 23 19 13 13 11 Storage 14 | . 14 14 22 22 22 8 6 6 6 6 Processor 5 | . . 10 . . . 6 13 13 13 12 Protection 4 | . 11 7 . . . 6 6 12 13 11 Energy Gun 17 | . . 6 22 22 21 19 20 19 20 16 Ballistic Gun 3 | . 28 15 . . . . . . . . Naked Turns . | . . . . . . . . . . . Heaviest Build 72 | 13 33 37 39 41 47 64 65 69 71 72 Greatest Support 88 | 40 40 40 40 40 58 76 80 80 80 88 Greatest Overweight (x) 3 | . . . . 1 2 . . . . 3 Average Overweight (x) . | . . . . . . . . . . . Largest Inventory Capacity 15 | 8 15 15 15 15 15 15 15 15 15 15 Average Capacity 14 | 6 14 15 15 15 15 15 15 15 15 14 Most Carried 15 | 1 14 15 15 15 15 15 15 15 15 15 Average Carried 14 | . 6 14 14 14 15 14 14 14 14 13 Final Capacity 15 | 8 15 15 15 15 15 15 15 15 15 5 Final Carried 15 | 1 14 15 15 15 15 15 15 15 15 5 Class Distribution -------------------- 50% | Scavenger-Mutant 18% | Scavenger-Gunner 12% | Scavenger-Tank 11% | Mutant Dominant Class ---------------- Mutant | -10/Materials Scavenger-Mutant | -9/Materials Scavenger-Mutant | -9/Mines Scavenger-Mutant | -7/Zion Scavenger-Mutant | -6/Proximity Caves Scavenger-Gunner | -6/Factory Scavenger-Gunner | -6/Extension Scavenger-Tank | -6/Cetus Scavenger-Tank | -6/Archives Scavenger-Tank | -6/Hub_04(d) Resources | -11 -10 -9 -9 -7 -6 -6 -6 -6 -6 -6 ----------- Run | Yrd Mat Mat Min Zio Pro Fac Ext Cet Arc Hub Matter Collected 2175 | 167 255 665 70 10 107 330 161 40 89 281 Remotely . | . . . . . . . . . . . Salvage Created 4151 | . 325 1086 349 . 248 515 778 . . 850 Parts 178 | . 20 51 18 . 9 20 19 . . 41 Haulers Intercepted 6 | . 1 3 . . . . 2 . . . Recyclers Shooed 2 | . . 2 . . . . . . . . Parts Field Recycled . | . . . . . . . . . . . Retrieved Matter . | . . . . . . . . . . . Parts Self-Destructed 24 | . . . . 3 21 . . . . . Prevented 4 | . . . . . 4 . . . . . Kills | -11 -10 -9 -9 -7 -6 -6 -6 -6 -6 -6 ------- Run | Yrd Mat Mat Min Zio Pro Fac Ext Cet Arc Hub Combat Hostiles Destroyed 75 | . 5 21 12 . 4 8 11 . . 14 Guns 64 | . 5 20 12 . 3 7 11 . . 6 AOE 8 | . . . . . . . . . . 8 Classes Destroyed 16 | . 6 2 1 . 2 1 1 . . 3 Worker 7 | . 2 1 . . . 1 1 . . 2 Builder 2 | . . . . . . . . . . 2 Hauler 6 | . 1 3 . . . . 2 . . . Recycler 4 | . 1 1 . . . . . . . 2 Minesweeper 1 | . . . . . 1 . . . . . Operator 2 | . . 1 . . . . . . . 1 Watcher 8 | . 2 2 . . . 2 1 . . 1 Swarmer 18 | . 3 7 6 . 2 . . . . . Grunt 24 | . 2 10 5 . . 3 3 . . 1 Duelist 2 | . . . 1 . 1 . . . . . Protector 2 | . . . . . . . . . . 2 Sentry 14 | . . 4 . . . 3 5 . . 2 Hunter 2 | . . . . . . 1 . . . 1 Programmer 5 | . . . . . 1 1 1 . . 2 Behemoth 1 | . . . . . . . 1 . . . Lightning 6 | . . . . . . . . . . 6 Z-Heavy 1 | . . . . . . . . . . 1 Thug 2 | . . . . . 1 . 1 . . . Best Kill Streak 9 | . 3 4 6 . 1 5 3 . . 9 Combat Bots Only 8 | . 3 4 6 . 1 2 2 . . 8 Max Kills in Single Turn 7 | . 1 2 1 . 1 2 1 . . 7 Gunslinging 1 | . . 1 . . . . . . . . Exploded 3 | . . . . . . . . . . 3 Melee . | . . . . . . . . . . . Uniques/NPCs Destroyed . | . . . . . . . . . . . Combat | -11 -10 -9 -9 -7 -6 -6 -6 -6 -6 -6 -------- Run | Yrd Mat Mat Min Zio Pro Fac Ext Cet Arc Hub Hostile Shots Fired 518 | . 31 97 52 . 51 100 70 2 10 105 Missed 149 | . 4 29 20 . 16 34 22 . 3 21 Damage Taken 7500 | . 254 776 318 . 680 767 561 98 164 3882 Core 1238 | . 88 146 43 . 77 115 43 . . 726 Absorbed by Shields 34 | . . . . . 34 . . . . . Redirected to Shielding 185 | . 9 27 . . . . . . . 149 Core Remaining (%) 65 | 100 64 . . . 33 . . . . . Volleys Fired 261 | . 33 93 23 1 23 22 30 3 4 29 Largest 3 | . 2 2 2 2 2 3 3 2 3 3 Hottest 400 | . 40 130 118 136 136 240 240 240 400 242 Shots Fired 573 | . 66 186 46 2 45 63 90 5 11 59 Gun 566 | . 66 186 46 2 45 63 90 5 11 52 Cannon . | . . . . . . . . . . . Launcher 7 | . . . . . . . . . . 7 Special . | . . . . . . . . . . . Kinetic 200 | . 66 134 . . . . . . . . Thermal 360 | . . 52 46 2 45 63 90 5 11 46 Explosive 7 | . . . . . . . . . . 7 Electromagnetic . | . . . . . . . . . . . Phasic 6 | . . . . . . . . . . 6 Robot Hit Streak 26 | . 11 9 8 . 8 11 26 3 16 10 Robot Miss Streak 7 | . 3 5 5 . 3 5 7 2 2 3 Penetration Max . | . . . . . . . . . . . Secondary Targets 12 | . 2 4 3 . . 1 2 . . . Max Gunslinging Chain 1 | . 1 1 1 . . 1 1 . . . Shots Hit Robots 392 | . 42 112 30 . 32 45 79 4 10 38 Core Hits 340 | . 19 52 15 . 8 35 76 5 8 122 Critical Kills 1 | . . 1 . . . . . . . . Critical Parts Destroyed 1 | . 1 . . . . . . . . . Critical Strikes 11 | . 1 3 2 . 3 1 . . . 1 Burn 8 | . . 2 2 . 3 1 . . . . Destroy 2 | . 1 1 . . . . . . . . Intensify 1 | . . . . . . . . . . 1 Melee Attacks 10 | . . . . . 3 5 2 . . . Impact . | . . . . . . . . . . . Slashing . | . . . . . . . . . . . Piercing 5 | . . . . . . 5 . . . . Sneak Attacks 3 | . . . . . 3 . . . . . Combat Hostiles . | . . . . . . . . . . . Follow-up Attacks . | . . . . . . . . . . . Damage Inflicted 11719 | . 457 1752 593 . 650 1140 2257 98 287 4485 Guns 8166 | . 457 1752 593 . 650 1140 2257 98 287 932 Cannons . | . . . . . . . . . . . Explosions 3553 | . . . . . . . . . . 3553 Melee . | . . . . . . . . . . . Ramming . | . . . . . . . . . . . Kinetic 1586 | . 457 1129 . . . . . . . . Thermal 6481 | . . 623 593 . 650 1140 2257 98 287 833 Explosive 2654 | . . . . . . . . . . 2654 Electromagnetic 899 | . . . . . . . . . . 899 Impact . | . . . . . . . . . . . Slashing . | . . . . . . . . . . . Piercing . | . . . . . . . . . . . Phasic 99 | . . . . . . . . . . 99 Highest Corruption 55 | . . . . . 2 1 7 7 7 55 Average Corruption 7 | . . . . . 1 1 5 7 7 15 Corruption Purged . | . . . . . . . . . . . Corruption Blocked . | . . . . . . . . . . . Effects 101 | . . . . . 8 1 25 13 14 40 Message Errors 24 | . . . . . 2 . 8 4 3 7 Matter Fused 21 | . . . . . 2 . 7 1 3 8 Heat Flow Errors 13 | . . . . . . . 3 3 1 6 Energy Discharges 11 | . . . . . . 1 2 3 3 2 Parts Rejected 1 | . . . . . . . . . . 1 Data Loss (minor) 15 | . . . . . 1 . 3 1 3 7 Data Loss (major) 4 | . . . . . 1 . . 1 1 1 Misfires 1 | . . . . . . . 1 . . . Alerts 3 | . . . . . 1 . . . . 2 Misdirections 3 | . . . . . . . . . . 3 Weapon Failures 5 | . . . . . 1 . 1 . . 3 Overload Shots 2 | . . . . . . . . 1 1 . Overflow Damage 94 | . . . . . . . . . . 94 Projectiles . | . . . . . . . . . . . Explosions 94 | . . . . . . . . . . 94 Melee . | . . . . . . . . . . . Knockbacks . | . . . . . . . . . . . Impact . | . . . . . . . . . . . Kinetic . | . . . . . . . . . . . Secondary . | . . . . . . . . . . . Self-Inflicted Damage 548 | . . . . . . . . . . 548 Shots 20 | . . . . . . . . . . 20 Rammed . | . . . . . . . . . . . Targets Rammed . | . . . . . . . . . . . Kicked . | . . . . . . . . . . . Crushed . | . . . . . . . . . . . Highest Temperature 215 | . 9 22 4 . 72 208 194 185 210 215 Average Temperature 93 | . 8 10 4 . 31 102 99 77 89 105 Received Heat Transfer 931 | . 48 237 60 . 111 196 165 9 54 51 Siege Activations . | . . . . . . . . . . . Robots Corrupted . | . . . . . . . . . . . Combat Hostiles . | . . . . . . . . . . . Parts Fried 6 | . . . . . . . . . . 6 Impact Corruptions . | . . . . . . . . . . . Robots Melted 3 | . . 1 . . 1 1 . . . . Combat Hostiles 3 | . . 1 . . 1 1 . . . . Parts Melted 25 | . . 4 . . 2 5 13 . . 1 Heat Transferred 13101 | . . 1280 1332 . 1332 2353 5000 225 562 1017 Parts Sabotaged . | . . . . . . . . . . . Parts Stolen . | . . . . . . . . . . . Parts Stripped . | . . . . . . . . . . . Power Chain Reactions . | . . . . . . . . . . . Alert | -11 -10 -9 -9 -7 -6 -6 -6 -6 -6 -6 ------- Run | Yrd Mat Mat Min Zio Pro Fac Ext Cet Arc Hub Peak Influence 532 | . 188 319 280 . . 142 515 374 156 532 Initial 225 | . . 16 . . . 39 14 225 69 54 Average 158 | . 60 134 136 . . 57 226 329 149 259 Maximum Alert Level 2 | . . 1 1 . . . 2 1 . 2 Low Security (%) 71 | 100 100 74 65 . . 100 57 12 100 47 Level 1 21 | . . 25 34 . . . 18 87 . 30 Level 2 7 | . . . . . . . 24 . . 21 Level 3 . | . . . . . . . . . . . Level 4 . | . . . . . . . . . . . Level 5 . | . . . . . . . . . . . High Security . | . . . . . . . . . . . Max Security . | . . . . . . . . . . . Squads Dispatched 6 | . . 1 . . . 2 1 . . 2 Investigation 2 | . . . . . . . 1 . . 1 Extermination 3 | . . . . . . 2 . . . 1 Reinforcement 1 | . . 1 . . . . . . . . Assault . | . . . . . . . . . . . Garrison . | . . . . . . . . . . . Intercept . | . . . . . . . . . . . Searches Triggered . | . . . . . . . . . . . Construction Impeded . | . . . . . . . . . . . Haulers Reinforced . | . . . . . . . . . . . Active Scanning Responses . | . . . . . . . . . . . Cargo Convoy Interrupts . | . . . . . . . . . . . Stealth | -11 -10 -9 -9 -7 -6 -6 -6 -6 -6 -6 --------- Run | Yrd Mat Mat Min Zio Pro Fac Ext Cet Arc Hub Distress Signals 6 | . . 1 . . . 1 2 1 . 1 Communications Jammed 52 | . . . . . . 8 44 . . . Distress Signals 52 | . . . . . . 8 44 . . . Times Spotted 140 | . 8 30 15 . 14 13 23 5 4 28 Peak Tracking Total 9 | . 3 4 4 . 7 3 4 5 2 9 Tactical Retreats 3 | . . 1 1 . . 1 . . . . Traps | -11 -10 -9 -9 -7 -6 -6 -6 -6 -6 -6 ------- Run | Yrd Mat Mat Min Zio Pro Fac Ext Cet Arc Hub Traps Triggered 3 | . . . . . . . 2 . . 1 Indirectly . | . . . . . . . . . . . Trap Hack Attempts . | . . . . . . . . . . . Triggered . | . . . . . . . . . . . Disarmed . | . . . . . . . . . . . Reprogrammed . | . . . . . . . . . . . Reused . | . . . . . . . . . . . Traps Extracted . | . . . . . . . . . . . Installed . | . . . . . . . . . . . Triggered . | . . . . . . . . . . . Machines | -11 -10 -9 -9 -7 -6 -6 -6 -6 -6 -6 ---------- Run | Yrd Mat Mat Min Zio Pro Fac Ext Cet Arc Hub Machines Disabled 19 | . . 2 . . 2 1 1 1 2 10 Max in Single Turn 7 | . . 1 . . 1 1 . 1 . 7 Network Hub 2 | . . . . . . . . . . 2 Energy Cycler 1 | . . . . . . . 1 . . . Machines Repaired . | . . . . . . . . . . . Machines Dismantled . | . . . . . . . . . . . Machines Sabotaged . | . . . . . . . . . . . Overloaded Fab Kills . | . . . . . . . . . . . Hacking | -11 -10 -9 -9 -7 -6 -6 -6 -6 -6 -6 --------- Run | Yrd Mat Mat Min Zio Pro Fac Ext Cet Arc Hub Machines Accessed 26 | . 2 9 1 . . 2 10 2 . . Terminals 23 | . 2 8 1 . . 1 9 2 . . Fabricators . | . . . . . . . . . . . Repair Stations . | . . . . . . . . . . . Recycling Units 3 | . . 1 . . . 1 1 . . . Scanalyzers . | . . . . . . . . . . . Garrison Access . | . . . . . . . . . . . Total Hacks 63 | . 5 25 2 . . 4 18 9 . . Successful 29 | . 3 15 . . . 1 8 2 . . Failed 34 | . 2 10 2 . . 3 10 7 . . Catastrophic 5 | . 1 . 1 . . . 1 2 . . Database Lockouts . | . . . . . . . . . . . Manual 58 | . 2 13 2 1 . 12 10 2 . 16 Terminals 57 | . 5 24 2 . . 1 16 9 . . Fabricators . | . . . . . . . . . . . Repair Stations . | . . . . . . . . . . . Recycling Units 6 | . . 1 . . . 3 2 . . . Scanalyzers . | . . . . . . . . . . . Garrison Access . | . . . . . . . . . . . Terminal Hacks 19 | . 2 8 . . . 1 6 2 . . Record 2 | . . . . . . . . 2 . . Prototype ID Bank 1 | . . 1 . . . . . . . . Open Door 7 | . . . . . . 1 6 . . . Branch Access Points 1 | . 1 . . . . . . . . . Terminal Index 1 | . . 1 . . . . . . . . Alert Level 3 | . 1 2 . . . . . . . . Unreport Threat 2 | . . 2 . . . . . . . . Locate Traps 1 | . . 1 . . . . . . . . Registered Components 1 | . . 1 . . . . . . . . Fabricator Hacks . | . . . . . . . . . . . Repair Station Hacks . | . . . . . . . . . . . Recycling Unit Hacks 1 | . . . . . . . 1 . . . Retrieve Components 1 | . . . . . . . 1 . . . Scanalyzer . | . . . . . . . . . . . Garrison Access Hacks . | . . . . . . . . . . . Unauthorized Hacks 9 | . 1 7 . . . . 1 . . . Terminals 7 | . 1 6 . . . . . . . . Assimilate 2 | . . 2 . . . . . . . . Botnet 4 | . 1 3 . . . . . . . . Operators 1 | . . 1 . . . . . . . . Fabricators . | . . . . . . . . . . . Repair Stations . | . . . . . . . . . . . Recycling Units 2 | . . 1 . . . . 1 . . . Reject 2 | . . 1 . . . . 1 . . . Scanalyzers . | . . . . . . . . . . . Garrison Access . | . . . . . . . . . . . Data Cores Recovered . | . . . . . . . . . . . Used . | . . . . . . . . . . . Hacking Detections 20 | . 2 8 1 . . 2 5 2 . . Full Trace Events 1 | . . . . . . . 1 . . . Feedback Events 1 | . . . . . . . 1 . . . Corruption 1 | . . . . . . . 1 . . . Feedback Blocked . | . . . . . . . . . . . Robot Schematics Acquired 4 | . . . . 4 . . . . . . Robots Built . | . . . . . . . . . . . Authchips . | . . . . . . . . . . . Time . | . . . . . . . . . . . Total Robot Build Rating . | . . . . . . . . . . . Part Schematics Acquired 23 | . . . . 14 . 9 . . . . Parts Built . | . . . . . . . . . . . Authchips . | . . . . . . . . . . . Time . | . . . . . . . . . . . Total Part Build Rating . | . . . . . . . . . . . Parts Repaired . | . . . . . . . . . . . Time . | . . . . . . . . . . . Parts Recycled . | . . . . . . . . . . . Recycled Matter . | . . . . . . . . . . . Retrieved Matter . | . . . . . . . . . . . Retrieved Components . | . . . . . . . . . . . Parts Scanalyzed . | . . . . . . . . . . . Part Schematics Acquired . | . . . . . . . . . . . Parts Damaged . | . . . . . . . . . . . Bothacking | -11 -10 -9 -9 -7 -6 -6 -6 -6 -6 -6 ------------ Run | Yrd Mat Mat Min Zio Pro Fac Ext Cet Arc Hub Used RIF Installer . | . . . . . . . . . . . Robots Hacked 2 | . . . . . 2 . . . . . Non-combat . | . . . . . . . . . . . Combat 2 | . . . . . 2 . . . . . Robot Hacks Applied 3 | . . . . . 3 . . . . . parse_system 3 | . . . . . 3 . . . . . Relay Couplers Released . | . . . . . . . . . . . Fabnet Peak Effective % . | . . . . . . . . . . . Robots Rewired 14 | . . . . . . . 14 . . . Allies Hacked 1 | . . . . . 1 . . . . . Hacks Repelled . | . . . . . . . . . . . Allies | -11 -10 -9 -9 -7 -6 -6 -6 -6 -6 -6 -------- Run | Yrd Mat Mat Min Zio Pro Fac Ext Cet Arc Hub Total Allies 39 | . . 2 1 9 . . 25 . . 2 Largest Group 12 | . . 1 1 9 9 1 12 12 9 6 Highest-Rated Group 375 | . . 10 31 326 326 35 375 375 289 298 Highest-Rated Ally 85 | . . 10 31 51 51 35 39 39 39 85 Zionite Dispatches 3 | . . . . . . . 2 . . 1 Heavy 1 | . . . . . . . . . . 1 Recon 1 | . . . . . . . 1 . . . Demo 1 | . . . . . . . 1 . . . Total Orders 13 | . . 4 . . . 4 3 . . 2 STAY 4 | . . 2 . . . . . . . 2 ROAM 1 | . . . . . . 1 . . . . FOLLOW 3 | . . 2 . . . . 1 . . . AID 1 | . . . . . . . 1 . . . EXPLORE 3 | . . . . . . 2 1 . . . RETURN 1 | . . . . . . 1 . . . . Ally Attacks 243 | . . . 3 . 66 . 94 33 23 24 Total Damage 7546 | . . . 42 . 1741 . 2707 1038 501 1517 Kills 53 | . . . 2 . 12 . 19 6 7 7 Allies Corrupted . | . . . . . . . . . . . Allies Melted . | . . . . . . . . . . . Intel | -11 -10 -9 -9 -7 -6 -6 -6 -6 -6 -6 ------- Run | Yrd Mat Mat Min Zio Pro Fac Ext Cet Arc Hub Robot Analysis Total . | . . . . . . . . . . . Derelict Logs Recovered 3 | . . . . 2 1 . . . . . Drone Launches 4 | . . . . . . 2 2 . . . Drone Recoveries 3 | . . . . . . 1 2 . . . Zionite Intel Received 6 | . . . . . . 2 1 . . 3 Prototype Stockpiles 1 | . . . . . . . . . . 1 Prototype Schematics 1 | . . . . . . 1 . . . . Unaware Analyses 1 | . . . . . . . 1 . . . Active Terminals 1 | . . . . . . 1 . . . . Active Garrisons 1 | . . . . . . . . . . 1 Depthwide Sectors/0 1 | . . . . . . . . . . 1 Exploration | -11 -10 -9 -9 -7 -6 -6 -6 -6 -6 -6 ------------- Run | Yrd Mat Mat Min Zio Pro Fac Ext Cet Arc Hub Turns Passed 11957 | 70 663 1619 913 2581 1547 1345 1300 456 384 1079 Spaces Moved 5920 | 39 341 770 512 1156 773 654 578 270 224 603 Core 13 | 2 . . . . . . . . . 11 Treads 5771 | 37 341 770 512 1156 773 654 578 270 224 456 Legs . | . . . . . . . . . . . Wheels 136 | . . . . . . . . . . 136 Hover . | . . . . . . . . . . . Flight . | . . . . . . . . . . . Fastest Speed 50 | 50 160 160 160 160 160 163 163 163 163 50 Average Speed 175 | 154 160 160 160 221 184 163 163 163 163 151 Slowest Speed 330 | 160 160 160 160 240 330 163 163 163 163 163 Overloaded Moves . | . . . . . . . . . . . Propulsion Burnouts . | . . . . . . . . . . . Robots Hopped . | . . . . . . . . . . . Cave-ins Triggered . | . . . . . . . . . . . Exploration Rate (%) 63 | 5 55 47 88 89 76 16 77 84 100 58 Regions Visited 10 Branch Regions 7 Pre-discovered Areas 10 | . . . . . . . . . . 10 Known Exits Taken 1 | . . . . . . . 1 . . . Unknown Exits Taken 9 | 1 1 1 1 1 1 1 . 1 1 . Scrap Searched 8 | . . . 1 4 3 . . . . . Spaces Dug 4 | . . . . . . 4 . . . . Terrain Destroyed 238 | . . . . . . 4 . . . 234 Melee 4 | . . . . . . 4 . . . . Projectile 8 | . . . . . . . . . . 8 AOE 226 | . . . . . . . . . . 226 Terrain Rammed . | . . . . . . . . . . . Walls Destroyed . | . . . . . . . . . . . Machines Disabled . | . . . . . . . . . . . Actions | -11 -10 -9 -9 -7 -6 -6 -6 -6 -6 -6 --------- Run | Yrd Mat Mat Min Zio Pro Fac Ext Cet Arc Hub Total 6988 | 46 398 988 565 1181 847 878 848 281 235 721 Wait 330 | 1 10 50 9 19 32 122 37 . . 50 Move 5910 | 38 340 769 511 1155 772 653 577 269 223 603 Hop . | . . . . . . . . . . . Pick Up 55 | 1 11 14 7 2 1 12 2 . 2 3 Fast Attach 42 | 6 2 11 1 . 4 8 1 2 . 7 Attach 27 | . . 6 2 . . 9 1 1 1 7 Detach 20 | . 1 6 . . 1 8 . 2 . 2 Swap 64 | . 1 12 4 1 5 16 13 2 2 8 Drop 91 | . . 27 8 3 6 23 7 2 3 12 Fire 261 | . 33 93 23 1 23 22 30 3 4 29 Melee 10 | . . . . . 3 5 2 . . . Ram . | . . . . . . . . . . . Kick . | . . . . . . . . . . . Crush . | . . . . . . . . . . . Escape Stasis . | . . . . . . . . . . . Rewire 178 | . . . . . . . 178 . . . Trap . | . . . . . . . . . . . Miscellaneous . | . . . . . . . . . . . Route ------- -11/Scrapyard -10/Materials (discovered 3 exits: *Mat x2 / Min) -9/Materials (discovered 2 exits: [*Mat] / *Min) -9/Mines (discovered 3 exits: [*Mat x2] / *Zio) -7/Zion -6/Proximity Caves -6/Factory (discovered 3 exits: Fac / [*Low] / *Ext) -6/Extension (discovered 3 exits: *Fac x2 / *Cet) -6/Cetus -6/Archives (discovered 3 exits: *Fac / *Hub x2) -6/Hub_04(d) (discovered 2 exits: *Fac x2) History --------- Turn | Location | Event 31 | -11/Scrapyard | Discovered new exit (range 16) 71 | -11/Scrapyard | Entered Materials 267 | -10/Materials | Discovered new exit (range 15) 308 | -10/Materials | Build established: Mutant 384 | -10/Materials | Discovered new exit (range 16) 614 | -10/Materials | Identified exit to Mines 734 | -10/Materials | Entered another Materials area 734 | -9/Materials | Evolved 2 slots: Utility x2 1679 | -9/Materials | Build established: Scavenger-Mutant 1811 | -9/Materials | Discovered new exit (range 7) 2332 | -9/Materials | Discovered new exit (range 11) 2353 | -9/Materials | Entered Mines 2353 | -9/Mines | Accompanied by 1 ally 2401 | -9/Mines | Discovered new exit (range 10) 2762 | -9/Mines | Received a Mining Laser from a helpful Derelict 3250 | -9/Mines | Discovered new exit (range 11) 3251 | -9/Mines | A Derelict revealed a hidden shortcut to a safe place 3266 | -9/Mines | Entered Zion 3353 | -7/Zion | Received a visual enhancement algorithm 3420 | -7/Zion | Discovered new exit (range 9) 3664 | -7/Zion | Gained Derelict followers 3826 | -7/Zion | Given A8's code to call for help 4193 | -7/Zion | Imprinted 4196 | -7/Zion | Declared Zion's savior 4467 | -7/Zion | Learned Factory stockpile data 4569 | -7/Zion | Learned Factory security intel 5847 | -7/Zion | Entered Proximity Caves 5847 | -6/Proximity Caves | Accompanied by 9 allies 6323 | -6/Proximity Caves | Spotted B-75 Beast 6341 | -6/Proximity Caves | Allies destroyed B-75 Beast 6512 | -6/Proximity Caves | Attracted the attention of an 0b10 base 6516 | -6/Proximity Caves | Core integrity fell below 50% 6553 | -6/Proximity Caves | Lost 4 allies 6799 | -6/Proximity Caves | Learned location of 1 exit from Factory 6805 | -6/Proximity Caves | Attracted the attention of an 0b10 checkpoint 6848 | -6/Proximity Caves | Discovered new exit (range 6) 7394 | -6/Proximity Caves | Entered Factory 7394 | -6/Factory | Accompanied by 1 ally 7394 | -6/Factory | Evolved 6 slots: Power x1, Propulsion x1, Utility x3, Weapon x1 7395 | -6/Factory | Identified exit to Factory 7917 | -6/Factory | Discovered new exit (range 22) 8122 | -6/Factory | Retrieved Zion intel report: Active Terminals 8157 | -6/Factory | Build established: Scavenger-Gunner 8414 | -6/Factory | Retrieved Zion intel report: Prototype Schematics 8563 | -6/Factory | Spotted B-75 Beast 8606 | -6/Factory | Discovered new exit (range 6) 8739 | -6/Factory | Entered Extension 8895 | -6/Extension | Rescued a captive Derelict 8981 | -6/Extension | P-60 Hacker assimilated allied C4-2JH(g) 9195 | -6/Extension | Rescued a captive Derelict 9197 | -6/Extension | Rescued a captive Derelict 9236 | -6/Extension | Rescued a captive Derelict 9259 | -6/Extension | Spotted B-75 Beast 9265 | -6/Extension | Rescued a captive Derelict 9266 | -6/Extension | Rescued a captive Derelict 9284 | -6/Extension | Spotted B-75 Beast 9294 | -6/Extension | Allies destroyed B-75 Beast 9306 | -6/Extension | Destroyed B-75 Beast 9333 | -6/Extension | Lost 5 allies 9414 | -6/Extension | Disrupted transfer network 9448 | -6/Extension | Discovered exit to Factory (range 3) 9525 | -6/Extension | Zion Demo squad teleported in 9531 | -6/Extension | Energy Cycler disabled 9531 | -6/Extension | Rescued a captive Derelict 9531 | -6/Extension | Rescued a captive Derelict 9531 | -6/Extension | Rescued a captive Derelict 9531 | -6/Extension | Rescued a captive Derelict 9532 | -6/Extension | Rescued a captive Derelict 9535 | -6/Extension | Rescued a captive Derelict 9536 | -6/Extension | Rescued a captive Derelict 9537 | -6/Extension | Rescued a captive Derelict 9539 | -6/Extension | Rescued a captive Derelict 9654 | -6/Extension | Zion Recon squad teleported in 9763 | -6/Extension | Retrieved Zion intel report: Unaware Analyses 10008 | -6/Extension | Build established: Commander-Gunner 10011 | -6/Extension | Discovered exit to Factory (range 10) 10013 | -6/Extension | Discovered new exit (range 6) 10026 | -6/Extension | Identified exit to Cetus 10039 | -6/Extension | Entered Cetus 10039 | -6/Cetus | Accompanied by 12 allies 10062 | -6/Cetus | Spotted Cetus Guard 10062 | -6/Cetus | Spotted Cetus Guard 10062 | -6/Cetus | Spotted Cetus Guard 10062 | -6/Cetus | Spotted Cetus Guard 10069 | -6/Cetus | Allies destroyed Cetus Guard 10069 | -6/Cetus | Allies destroyed Cetus Guard 10074 | -6/Cetus | Allies destroyed Cetus Guard 10078 | -6/Cetus | Allies destroyed Cetus Guard 10098 | -6/Cetus | Lost 3 allies 10364 | -6/Cetus | Discovered new exit (range 20) 10385 | -6/Cetus | Build established: Scavenger-Tank 10495 | -6/Cetus | Entered Archives 10495 | -6/Archives | Accompanied by 9 allies 10540 | -6/Archives | Discovered new exit (range 20) 10547 | -6/Archives | Unable to access archive contents 10562 | -6/Archives | Lost 5 allies 10566 | -6/Archives | Discovered exit to Factory (range 14) 10581 | -6/Archives | Unable to access archive contents 10589 | -6/Archives | Discovered new exit (range 16) 10879 | -6/Archives | Entered Hub_04(d) 10879 | -6/Hub_04(d) | Accompanied by 4 allies 10891 | -6/Hub_04(d) | Discovered exit to Factory (range 6) 10998 | -6/Hub_04(d) | Retrieved Zion intel report: Depthwide Sectors/0 11025 | -6/Hub_04(d) | Discovered exit to Factory (range 8) 11126 | -6/Hub_04(d) | Retrieved Zion intel report: Prototype Stockpiles 11135 | -6/Hub_04(d) | Retrieved Zion intel report: Active Garrisons 11136 | -6/Hub_04(d) | Zion Heavy squad teleported in 11142 | -6/Hub_04(d) | Spotted B-75 Beast 11154 | -6/Hub_04(d) | Allies destroyed B-75 Beast 11444 | -6/Hub_04(d) | System corruption reached 10% 11569 | -6/Hub_04(d) | Found Prototype Protection 11569 | -6/Hub_04(d) | Identified Zio. Weapon Casing 11613 | -6/Hub_04(d) | Found Rocket Array 11655 | -6/Hub_04(d) | Network Hub disabled 11695 | -6/Hub_04(d) | Spotted Lightning 11695 | -6/Hub_04(d) | Spotted Lightning 11695 | -6/Hub_04(d) | Spotted Lightning 11695 | -6/Hub_04(d) | Spotted Lightning 11697 | -6/Hub_04(d) | Spotted Lightning 11700 | -6/Hub_04(d) | Spotted Lightning 11732 | -6/Hub_04(d) | System corruption reached 30% 11747 | -6/Hub_04(d) | Destroyed Lightning 11747 | -6/Hub_04(d) | Destroyed Lightning 11747 | -6/Hub_04(d) | Destroyed Lightning 11750 | -6/Hub_04(d) | Destroyed Lightning 11753 | -6/Hub_04(d) | Destroyed Lightning 11769 | -6/Hub_04(d) | Destroyed Lightning 11790 | -6/Hub_04(d) | Destroyed 8 combat bots 11794 | -6/Hub_04(d) | Lost 13 parts (2p3n5u3w) 11818 | -6/Hub_04(d) | Spotted Lightning 11822 | -6/Hub_04(d) | Spotted Lightning 11899 | -6/Hub_04(d) | Spotted Lightning 11926 | -6/Hub_04(d) | Network Hub disabled 11927 | -6/Hub_04(d) | Core integrity fell below 50% 11938 | -6/Hub_04(d) | Core integrity fell below 20% 11958 | -6/Hub_04(d) | Destroyed by Lightning with EMDS Last Messages --------------- 11927_ Dropped Lrg. Storage Unit. 11927_ Penetrated by EMDS Slug. 11927_ Lgt. Fission Core destroyed. 11927_ Imp. Deuterium Engine destroyed. 11928_ Penetrated by EMDS Slug. 11929_ Dropped Rocket Array. 11929_ Acquired Hvy. Pick. 11930_ Penetrated by EMDS Slug. 11930_ Hcp. Battery destroyed. 11932_ Penetrated by EMDS Slug. 11934_ System corrupted: Coolant Injector rejected. 11934_ Penetrated by EMDS Slug. 11946_ EMDS Slug penetrates Wall. 11947_ EMDS Slug penetrates Lightning. 11949_ DZ0D<2QC|QE4TM#:F2YMQBC PL 11952_ Penetrated by EMDS Slug. 11952_ Com. Wheel destroyed. 11955_ Penetrated by EMDS Slug. 11958_ U-05 Engineer lays Concrete. 11958_ Penetrated by EMDS Slug. Map ----- +----------------------------------------------------+ | # #################### # "" ! " | | # # # # # "" " | | # # " " " """"""""" / " | | ## + " " ![!! " | | # " " " "] ! " | | # " " """"" """ " | | ##### "" " # ## "" " | | # # # #" "" ! " | | ####+## # ## "" " | | #??# ## # i " """"""""""""" | | !#??# ## #hh## # | | #??# ## # ## # # | | # #### # # ## ############# | | ############## ##"#####???????????? | | """ # #########?????# #???????????????? | | # # ! #?????# #???????????????? | | """ "" !" ##?????# #???????????????? | | ## " !% #??????# #???????????????? | | """ # = #??????# #???????????????? | | #??????# #???????????????? | | """ # #??????# #???????????????? | | # # ######??????# ##+#???????????????? | | """ # %//#??????# #??????????????????? | | "" // #??????# #??????????????????? | | "" // #??????# #??????????????????? | | # """" ]#??????# @#??????????????????? | | / """" #??????+ ; ?????????????????? | | % # #??????# # ???????????????? | | ## ## #??????# #####??????????????? | | # ## * #??????# ??????????????????? | | # #####/############# k ?????????????????? | | + ^ # # ;#####??????????????? | | # """""""""!=";R;;""" #?????????????? | | ?? ## ^ " %= |%%u " #?????????????? | | ? ??# " [ != "#??????????????? | | ? ??# " k w " ?????????????? | | ???# "! u # ??????????????? | | ????# ### #% #???????????????? | | ?####+### / #???????????????? | | ?# " # #???????????????? | | ?# """" # ##"""""""";;;;;;###???????????????? | | ?# """ # " " ; #????????????????? | | ## " # # " $; #????????????????? | | #" " # " %; #????????????????? | | ## " # " *; #????????????????? | | ?######"" "!"" ; #????????????????? | | ?????# " %! ; #????????????????? | | ?????# " !*" " #????????????????? | | ?????######"""" = " #????????????????? | | ????????? "" %* #????????????????? | +----------------------------------------------------+ Best States ------------- Heat Dissipation 79 Coolant Potential 65 Energy Generation 36 Energy Capacity 620 Matter Stores 300 Matter Capacity 300 Sight Range 22 Robot Scan Range 16 Terrain Scan Density 10 Jamming Range 12 Armor Coverage 600 Weapon Shielding 100 Evasion (%) 40 Core Analysis 6 Recoil Reduction 3 Energy Filtering 30 Particle Charging 20 Salvage Targeting 1 Item Schematics ----------------- Nuclear Pulse Thruster | -7/Zion | Archive Force Booster | -7/Zion | Archive Mak. Trap Scanner | -7/Zion | Archive Imp. Arc Projector | -7/Zion | Archive Mak. Hammer | -7/Zion | Archive Flexi-carbon Leg | -7/Zion | Archive Weapon Cycler | -7/Zion | Archive Tactical Coordination Suite | -7/Zion | Archive Hvy. Riot Gun | -7/Zion | Archive Phase Shifter | -7/Zion | Archive Flak Gun | -7/Zion | Archive Thermal Shield | -7/Zion | Archive Mak. Flight Unit | -7/Zion | Archive Hvy. Battle Rifle | -7/Zion | Archive Impact Mace | -6/Factory | Z-intel Cld. Pulse Rifle | -6/Factory | Z-intel Antimatter Cannon | -6/Factory | Z-intel Cld. Airjet | -6/Factory | Z-intel Rocket Array | -6/Factory | Z-intel Imp. VTOL Module | -6/Factory | Z-intel Imp. Lightning Gun | -6/Factory | Z-intel Cld. Plasma Cannon | -6/Factory | Z-intel Adv. Beam Rifle | -6/Factory | Z-intel Robot Schematics ------------------ S-27 Virus | -7/Zion | Archive R-06 Scavenger | -7/Zion | Archive A-02 Transporter | -7/Zion | Archive L-61 Swordsman | -7/Zion | Archive Fabricated ------------ Nothing Alien Tech Used ----------------- None Achievements -------------- None Challenges ------------ None Game ------ Seed LegArmorWeb Manual? 0 Play Time 01:19:43 Cumulative 117.2 hours Start 2024.07.05 @ 20:40:33 End 2024.07.06 @ 21:05:28 Sessions 3 Manual Loads 0 Difficulty Rogue Special Mode None Game No. 142 Rogue 136 Adventurer 6 Explorer 0 Win Type - Total 1 Types 1/0/0/0/0/0/0/0/0 Lore% 39 Gallery% 62 Achievement% 44 Wizard Run 0 Options --------- Layout 0 ASCII 0 Keyboard 1 Movement Numpad Keybinds 0 Fullscreen 0 Font 14/Smallcaps Map View 76x50 Zoom Use 0% Tactical HUD 1 Map Filters NONE Filters NONE Steam 1 RUN: b28b4a18-4754-4401-9b2d-7dfe65d103b9